[Event "GER-ch Youth-U18w 2022"]
[Site "Willingen"]
[Date "2022.06.05"]
[Round "1.2"]
[White "Kroemer, Paulina"]
[Black "Heutling, Elina"]
[Result "1-0"]
[ECO "E91"]
[WhiteElo "1583"]
[BlackElo "1798"]
[Annotator "NA RC COMBH"]
[PlyCount "71"]
[EventDate "2022.06.05"]
[EventType "swiss"]
[EventRounds "9"]
[EventCountry "GER"]
[SourceTitle "playchess.com"]
[Source "ChessBase"]
[SourceQuality "1"]
[TimeControl "40/4500+30:900+30"]

1. d4 {[%emt 0:00:00]} Nf6 {[%emt 0:00:00]} 2. Nf3 {[%emt 0:00:00]} g6 {[%emt 0:00:00]} 3. c4 {[%emt 0:00:00]} Bg7 {[%emt 0:00:00]} 4. Nc3 {[%emt 0:00:00]} O-O {[%emt 0:00:00]} 5. e4 {[%emt 0:00:00]} d6 {[%emt 0:00:00]} 6. Be2 {[%emt 0:00:00]} Nbd7 {[%emt 0:00:00]} 7. O-O {[%emt 0:00:00]} c6 {[%emt 0:00:00]} 8. h3 {[%emt 0:00:00]} e5 {[%emt 0:00:00]} 9. Be3 {[%emt 0:11:30]} Qe7 {[%emt 0:00:00]} 10. Qc2 {[%emt 0:02:45]} Re8 {[%emt 0:00:00]} 11. d5 {[%emt 0:08:06]} c5 {[%emt 0:00:00]} 12. a3 {[%emt 0:10:57]} Nh5 {[%emt 0:06:57]} 13. b4 {[%emt 0:10:59]} Nf4 {[%emt 0:08:01]} 14. Nb5 {[%emt 0:12:42]} Nf6 {[%emt 0:18:17]} 15. Bd3 {[%emt 0:03:11]} a6 {[%emt 0:03:35]} 16. Nc3 {[%emt 0:04:17]} Nd7 {[%emt 0:17:13]} 17. Rab1 {[%emt 0:03:35]} Nxd3 {[%emt 0:15:35]} 18. Qxd3 {[%emt 0:00:10]} f5 {[%emt 0:01:35]} 19. bxc5 {[%emt 0:06:00]} f4 {[%emt 0:00:44]} 20. c6 {[%emt 0:05:26]} fxe3 {[%emt 0:08:06]} 21. cxd7 {[%emt 0:00:33]} Qxd7 {[%emt 0:01:33]} 22. Qxe3 {[%emt 0:00:21]} Qc7 {[%emt 0:01:09]} 23. Na4 {[%emt 0:01:43]} b5 {[%emt 0:00:18]} 24. cxb5 {[%emt 0:01:23]} axb5 {[%emt 0:00:14]} 25. Nb6 {[%emt 0:00:32]} Rb8 {[%emt 0:01:59]} 26. Rxb5 {[%emt 0:00:50]} Ba6 {[%emt 0:00:45]} 27. Rc1 {[%emt 0:00:06]} Qe7 {[%emt 0:01:28]} 28. Ra5 {[%emt 0:01:22]} Qa7 {[%emt 0:01:03]} 29. Rc6 {[%emt 0:02:46]} Re7 {[%emt 0:00:23]} 30. Kh2 {[%emt 0:00:33]} Reb7 {[%emt 0:00:16]} 31. Nc4 {[%emt 0:00:20]} Qxe3 {[%emt 0:00:24]} 32. Nxe3 {[%emt 0:00:03]} Rb6 {[%emt 0:00:29]} 33. Ng5 {[%emt 0:00:52]} Bd3 {[%emt 0:00:18]} 34. Rxb6 {[%emt 0:00:21]} Rxb6 {[%emt 0:00:13]} 35. Ra8+ {[%emt 0:00:06]} Bf8 {[%emt 0:00:08]} 36. Ne6 {[%emt 0:00:05]} 1-0

[Event "GER-ch Youth-U18w 2022"]
[Site "Willingen"]
[Date "2022.06.05"]
[Round "1.3"]
[White "Rudolph, Eva"]
[Black "Wilmink, Anna"]
[Result "1-0"]
[ECO "B38"]
[WhiteElo "1860"]
[BlackElo "1700"]
[Annotator "NA RC COMBH"]
[PlyCount "41"]
[EventDate "2022.06.05"]
[EventType "swiss"]
[EventRounds "9"]
[EventCountry "GER"]
[SourceTitle "playchess.com"]
[Source "ChessBase"]
[SourceQuality "1"]
[TimeControl "40/4500+30:900+30"]

1. e4 {[%emt 0:00:00]} c5 {[%emt 0:00:00]} 2. Nf3 {[%emt 0:00:00]} g6 {[%emt 0:00:00]} 3. d4 {[%emt 0:00:00]} cxd4 {[%emt 0:00:00]} 4. Nxd4 {[%emt 0:00:00]} Nc6 {[%emt 0:00:00]} 5. c4 {[%emt 0:00:00]} Bg7 {[%emt 0:00:00]} 6. Be3 $1 {[%emt 0:00:00]} Nf6 {[%emt 0:00:00]} 7. Nc3 {[%emt 0:00:00]} O-O {[%emt 0:00:00]} 8. Be2 {[%emt 0:00:00]} d6 {[%emt 0:00:00]} 9. O-O {[%emt 0:00:00]} Bd7 {[%emt 0:00:00]} 10. Qd2 {[%emt 0:00:00]} Ng4 {[%emt 0:00:00]} 11. Bxg4 {[%emt 0:00:00]} Bxg4 {[%emt 0:00:00]} 12. f3 {[%emt 0:00:00]} Bd7 {[%emt 0:00:00]} 13. Rfd1 {[%emt 0:00:18]} Ne5 {[%emt 0:00:00]} 14. b3 {[%emt 0:02:03]} Rc8 {[%emt 0:06:47]} 15. Rac1 {[%emt 0:01:23]} b6 $14 {[%emt 0:14:02]} 16. Nd5 {[%emt 0:16:17]} f5 {[%emt 0:08:08]} 17. Bg5 {[%emt 0:09:59]} Rf7 {[%emt 0:03:42]} 18. exf5 {[%emt 0:12:06]} Bxf5 {[%emt 0:02:12]} 19. Qe3 {[%emt 0:09:01]} Bf8 {[%emt 0:06:15]} 20. Nxf5 {[%emt 0:04:01]} Rxf5 {[%emt 0:01:54]} 21. f4 {[%emt 0:11:31]} 1-0

[Event "GER-ch Youth-U18w 2022"]
[Site "Willingen"]
[Date "2022.06.05"]
[Round "1.4"]
[White "Berghold, Lotta"]
[Black "Basovskiy, Jana"]
[Result "*"]
[ECO "A05"]
[WhiteElo "1482"]
[BlackElo "1938"]
[Annotator "TA"]
[PlyCount "31"]
[EventDate "2022.06.05"]
[EventType "swiss"]
[EventRounds "9"]
[EventCountry "GER"]
[SourceTitle "playchess.com"]
[Source "ChessBase"]
[SourceQuality "1"]
[TimeControl "40/4500+30:900+30"]

{[%evp 9,31,8,13,3,16,21,20,14,20,10,15,4,8,12,38,9,14,-5,0,-7,0,0,-6,-51]} 1. Nf3 {[%emt 0:00:00]} Nf6 {[%emt 0:00:00]} 2. g3 {[%emt 0:00:00]} e6 {[%emt 0:00:00]} 3. Bg2 {[%emt 0:00:00]} d5 {[%emt 0:00:00]} 4. d3 {[%emt 0:00:00]} Bd6 {[%emt 0:00:00]} 5. O-O {[%emt 0:00:00]} O-O {[%emt 0:00:00]} 6. Nc3 {[%emt 0:00:00] A07: Réti Opening: New York and Capablanca Systems.} c6 {[%emt 0:00:00]} 7. e4 {[%emt 0:00:00]} dxe4 {[%emt 0:05:15]} 8. Nxe4 {[%emt 0:00:00]} Nxe4 {[%emt 0:00:08]} 9. dxe4 {[%emt 0:00:00]} Qc7 {[%emt 0:05:49]} 10. Qe2 {[%emt 0:00:46]} e5 {[%emt 0:00:13] [#]} 11. Nh4 $146 {[%emt 0:17:12]} ({Predecessor:} 11. Be3 Bg4 12. h3 Bxf3 13. Bxf3 Nd7 14. Rad1 Nf6 15. Bg2 h6 16. f4 Qe7 17. Bc1 {½-½ (26) Michalska,M (2078)-Milewski,H (1939) Chojnice 2006}) 11... Be6 {[%emt 0:06:47]} 12. b3 {[%emt 0:08:36]} Bc5 {[%emt 0:11:04] The position is equal.} 13. Bb2 {[%emt 0:12:28]} Nd7 {[%emt 0:00:41]} 14. Rad1 {[%emt 0:04:06]} Rfe8 {[%emt 0:14:32]} 15. h3 {[%emt 0:04:29]} a5 {[%emt 0:05:22]} 16. a3 {[%emt 0:12:45] A rather calm draw.  Weighted Error Value: White=0.09 (flawless) /Black=0.04 (flawless)} *

[Event "GER-ch Youth-U18w 2022"]
[Site "Willingen"]
[Date "2022.06.05"]
[Round "1.5"]
[White "Schneider, Katharina"]
[Black "Goetten Wagner, Julia"]
[Result "0-1"]
[ECO "C54"]
[WhiteElo "1810"]
[BlackElo "1631"]
[Annotator "NA RC COMBH"]
[PlyCount "32"]
[EventDate "2022.06.05"]
[EventType "swiss"]
[EventRounds "9"]
[EventCountry "GER"]
[SourceTitle "playchess.com"]
[Source "ChessBase"]
[SourceQuality "1"]
[TimeControl "40/4500+30:900+30"]

1. e4 {[%emt 0:00:00]} e5 {[%emt 0:00:00]} 2. Nf3 {[%emt 0:00:00]} Nc6 {[%emt 0:00:00]} 3. Bc4 {[%emt 0:00:00]} Bc5 {[%emt 0:00:00]} 4. c3 {[%emt 0:00:00]} Nf6 {[%emt 0:00:00]} 5. d4 {[%emt 0:00:00]} exd4 {[%emt 0:00:00]} 6. cxd4 {[%emt 0:00:00]} Bb4+ {[%emt 0:00:00]} 7. Bd2 {[%emt 0:00:00]} Nxe4 {[%emt 0:00:00]} 8. Bxb4 {[%emt 0:00:00]} Nxb4 {[%emt 0:00:00]} 9. Qe2 {[%emt 0:06:34]} d5 {[%emt 0:00:00]} 10. a3 $17 {[%emt 0:30:23]} Nc6 {[%emt 0:09:19]} 11. Bxd5 {[%emt 0:04:24]} Qxd5 {[%emt 0:01:40]} 12. Nc3 {[%emt 0:01:32]} Qe6 {[%emt 0:05:06]} 13. Nxe4 {[%emt 0:09:06]} O-O {[%emt 0:04:25]} 14. O-O {[%emt 0:03:52]} Qg6 {[%emt 0:09:43]} 15. Ng3 {[%emt 0:06:34]} Bg4 {[%emt 0:09:43]} 16. Rad1 {[%emt 0:01:19]} Rfe8 {[%emt 0:04:59]} 0-1

[Event "GER-ch Youth-U18w 2022"]
[Site "Willingen"]
[Date "2022.06.05"]
[Round "1.6"]
[White "Gröschel, Karoline"]
[Black "Falke, Ornella"]
[Result "*"]
[ECO "B72"]
[WhiteElo "1546"]
[BlackElo "1844"]
[Annotator "NA RC COMBH"]
[PlyCount "31"]
[EventDate "2022.06.05"]
[EventType "swiss"]
[EventRounds "9"]
[EventCountry "GER"]
[SourceTitle "playchess.com"]
[Source "ChessBase"]
[SourceQuality "1"]
[TimeControl "40/4500+30:900+30"]

1. e4 {[%emt 0:00:00]} c5 {[%emt 0:00:00]} 2. Nf3 {[%emt 0:00:00]} d6 {[%emt 0:00:00]} 3. d4 {[%emt 0:00:00]} cxd4 {[%emt 0:00:00]} 4. Nxd4 {[%emt 0:00:00]} Nf6 {[%emt 0:00:00]} 5. Nc3 {[%emt 0:00:00]} g6 {[%emt 0:00:00]} 6. Be3 {[%emt 0:00:00]} Bg7 {[%emt 0:00:00]} 7. f3 {[%emt 0:00:00]} a6 {[%emt 0:00:00]} 8. Qd2 {[%emt 0:00:00]} h5 {[%emt 0:00:00]} 9. Be2 {[%emt 0:00:00]} Nbd7 {[%emt 0:00:00]} 10. O-O-O {[%emt 0:01:51]} b5 {[%emt 0:00:00]} 11. Kb1 {[%emt 0:09:30]} Bb7 {[%emt 0:02:26]} 12. h4 $11 {[%emt 0:09:10]} Rc8 {[%emt 0:26:28]} 13. Bf1 {[%emt 0:20:00]} Nc5 {[%emt 0:05:31]} 14. Nb3 Na4 {[%emt 0:10:53]} 15. Nxa4 {[%emt 0:05:37]} bxa4 {[%emt 0:00:04] 0.37} 16. Na5 {[%emt 0:04:04]} *

[Event "GER-ch Youth-U18w 2022"]
[Site "Willingen"]
[Date "2022.06.05"]
[Round "1.7"]
[White "Dietz, Kristin"]
[Black "Jacoby, Angelina"]
[Result "1-0"]
[ECO "B01"]
[WhiteElo "1707"]
[BlackElo "1535"]
[Annotator "NA RC COMBH"]
[PlyCount "34"]
[EventDate "2022.06.05"]
[EventType "swiss"]
[EventRounds "9"]
[EventCountry "GER"]
[SourceTitle "playchess.com"]
[Source "ChessBase"]
[SourceQuality "1"]
[TimeControl "40/4500+30:900+30"]

1. e4 {[%emt 0:00:00]} d5 {[%emt 0:00:00]} 2. exd5 {[%emt 0:00:00]} Qxd5 {[%emt 0:00:00]} 3. Nc3 {[%emt 0:00:00]} Qd8 {[%emt 0:00:00]} 4. d4 {[%emt 0:00:00]} Nf6 {[%emt 0:00:00]} 5. Nf3 {[%emt 0:00:00]} Bg4 {[%emt 0:00:00]} 6. h3 {[%emt 0:00:00]} Bxf3 {[%emt 0:00:00]} 7. Qxf3 {[%emt 0:00:00]} c6 {[%emt 0:00:00]} 8. Bf4 {[%emt 0:00:00]} e6 {[%emt 0:00:00]} 9. O-O-O {[%emt 0:00:00]} Bb4 {[%emt 0:00:00]} 10. Bc4 {[%emt 0:00:00]} Nd5 {[%emt 0:07:20]} 11. Bxd5 {[%emt 0:00:00]} cxd5 {[%emt 0:23:52]} 12. Qg4 {[%emt 0:18:14]} O-O {[%emt 0:08:59]} 13. Be5 {[%emt 0:04:55]} g6 {[%emt 0:01:53]} 14. h4 {[%emt 0:06:24]} Nd7 {[%emt 0:12:57]} 15. h5 {[%emt 0:01:15]} Nxe5 {[%emt 0:03:33]} 16. dxe5 {[%emt 0:00:41]} Bxc3 {[%emt 0:03:45]} 17. hxg6 {[%emt 0:13:07]} Bxb2+ {[%emt 0:01:24]} 1-0

[Event "GER-ch Youth-U18w 2022"]
[Site "Willingen"]
[Date "2022.06.05"]
[Round "1.8"]
[White "Kosak, Karolina"]
[Black "Orlova, Alicia"]
[Result "1/2-1/2"]
[ECO "B01"]
[WhiteElo "1471"]
[BlackElo "1724"]
[Annotator "NA RC COMBH"]
[PlyCount "91"]
[EventDate "2022.06.05"]
[EventType "swiss"]
[EventRounds "9"]
[EventCountry "GER"]
[SourceTitle "playchess.com"]
[Source "ChessBase"]
[SourceQuality "1"]
[TimeControl "40/4500+30:900+30"]

1. e4 {[%emt 0:00:00]} d5 {[%emt 0:00:00]} 2. exd5 {[%emt 0:00:00]} Nf6 {[%emt 0:00:00]} 3. Bb5+ {[%emt 0:00:00]} Bd7 {[%emt 0:00:00]} 4. Be2 {[%emt 0:00:00]} Nxd5 {[%emt 0:00:00]} 5. d4 {[%emt 0:00:00]} e6 {[%emt 0:00:00]} 6. Nf3 {[%emt 0:00:00]} c5 {[%emt 0:00:00]} 7. c4 {[%emt 0:04:33]} Nf6 {[%emt 0:00:00]} 8. Nc3 {[%emt 0:04:56]} cxd4 {[%emt 0:00:00]} 9. Nxd4 {[%emt 0:00:28]} a6 {[%emt 0:02:02]} 10. O-O {[%emt 0:03:24]} Qc7 {[%emt 0:06:31]} 11. h3 {[%emt 0:11:58]} Bd6 {[%emt 0:02:47]} 12. Be3 {[%emt 0:04:36]} O-O {[%emt 0:09:00]} 13. Nf3 {[%emt 0:18:09]} Nc6 {[%emt 0:13:55]} 14. Rc1 {[%emt 0:01:28]} Ne7 {[%emt 0:06:14]} 15. Qb3 {[%emt 0:03:16]} Bc5 {[%emt 0:02:53]} 16. Bxc5 {[%emt 0:01:58]} Qxc5 {[%emt 0:02:20]} 17. Na4 {[%emt 0:03:56]} Bxa4 {[%emt 0:04:03]} 18. Qxa4 {[%emt 0:00:01]} Nc6 {[%emt 0:02:03]} 19. Qc2 {[%emt 0:02:27]} Rfd8 {[%emt 0:02:08]} 20. Rfd1 {[%emt 0:00:30]} Nh5 {[%emt 0:08:16]} 21. Rxd8+ {[%emt 0:08:09]} Rxd8 {[%emt 0:00:21]} 22. Rd1 {[%emt 0:00:30]} Rxd1+ {[%emt 0:05:18]} 23. Qxd1 {[%emt 0:00:50]} Nf4 {[%emt 0:08:23]} 24. Bf1 {[%emt 0:01:10]} Qe7 {[%emt 0:01:07]} 25. Qd2 {[%emt 0:02:02]} e5 {[%emt 0:01:10]} 26. g3 {[%emt 0:01:47]} Ne6 {[%emt 0:01:03]} 27. Qd5 {[%emt 0:02:12]} Ned4 {[%emt 0:01:27]} 28. Nxd4 {[%emt 0:01:21]} exd4 {[%emt 0:01:58]} 29. a3 {[%emt 0:01:42]} Qe6 {[%emt 0:04:45]} 30. Qxe6 {[%emt 0:00:39]} fxe6 {[%emt 0:00:06]} 31. f4 {[%emt 0:00:16]} Kf7 {[%emt 0:01:13]} 32. Kf2 {[%emt 0:00:07]} e5 {[%emt 0:00:56]} 33. Kf3 {[%emt 0:00:22]} Ke6 {[%emt 0:00:51]} 34. Ke4 {[%emt 0:00:19]} exf4 {[%emt 0:00:13]} 35. gxf4 {[%emt 0:00:42]} a5 {[%emt 0:00:16]} 36. Be2 {[%emt 0:01:29]} Kd6 {[%emt 0:00:56]} 37. Bd1 {[%emt 0:01:03]} Kc5 {[%emt 0:00:36]} 38. Kd3 {[%emt 0:01:19]} Ne7 {[%emt 0:00:55]} 39. Bf3 {[%emt 0:02:12]} Ng6 {[%emt 0:00:38]} 40. b4+ {[%emt 0:02:11]} axb4 {[%emt 0:00:08]} 41. axb4+ {[%emt 0:15:06]} Kxb4 {[%emt 0:15:21]} 42. Kxd4 {[%emt 0:00:35]} Nxf4 {[%emt 0:00:00]} 43. Bxb7 {[%emt 0:00:00]} Ne6+ {[%emt 0:00:00]} 44. Kd5 {[%emt 0:00:57]} Nf4+ {[%emt 0:00:00]} 45. Kd4 {[%emt 0:00:31]} Ne6+ {[%emt 0:00:00]} 46. Kd5 {[%emt 0:00:07]} 1/2-1/2

[Event "GER-ch Youth-U18w 2022"]
[Site "Willingen"]
[Date "2022.06.05"]
[Round "1.9"]
[White "Albayrak, Nese Pinar"]
[Black "Mueller, Sophie Charlotte"]
[Result "1-0"]
[ECO "B06"]
[WhiteElo "1683"]
[BlackElo "1509"]
[Annotator "NA RC COMBH"]
[PlyCount "35"]
[EventDate "2022.06.05"]
[EventType "swiss"]
[EventRounds "9"]
[EventCountry "GER"]
[SourceTitle "playchess.com"]
[Source "ChessBase"]
[SourceQuality "1"]
[TimeControl "40/4500+30:900+30"]

1. e4 {[%emt 0:00:00]} d6 {[%emt 0:00:00]} 2. d4 {[%emt 0:00:00]} g6 {[%emt 0:00:00]} 3. Nc3 {[%emt 0:00:00]} Bg7 {[%emt 0:00:00]} 4. Be3 {[%emt 0:00:00]} Nd7 {[%emt 0:00:00]} 5. Nf3 {[%emt 0:00:00]} a6 {[%emt 0:00:00]} 6. a4 {[%emt 0:00:00]} Ngf6 {[%emt 0:00:00]} 7. h3 {[%emt 0:00:00]} O-O {[%emt 0:00:00]} 8. Bc4 {[%emt 0:08:11]} h5 {[%emt 0:03:07]} 9. Qd2 {[%emt 0:06:24]} e5 {[%emt 0:10:59]} 10. O-O {[%emt 0:08:35]} b6 {[%emt 0:09:06]} 11. Rfe1 {[%emt 0:10:38]} Bb7 {[%emt 0:01:25]} 12. Bh6 {[%emt 0:05:35]} exd4 {[%emt 0:10:04]} 13. Nxd4 {[%emt 0:02:36]} Re8 {[%emt 0:04:01]} 14. Bxg7 {[%emt 0:03:03]} Kxg7 {[%emt 0:00:02]} 15. Qg5 {[%emt 0:02:56]} Re5 {[%emt 0:16:23]} 16. Nf5+ {[%emt 0:03:04]} Kg8 {[%emt 0:00:47]} 17. Qxg6+ {[%emt 0:00:13]} Kf8 {[%emt 0:01:06]} 18. Qxf7# {[%emt 0:00:10]} 1-0

[Event "GER-ch Youth-U18w 2022"]
[Site "Willingen"]
[Date "2022.06.05"]
[Round "1.10"]
[White "Sokyrko, Sofiia"]
[Black "Yue, Qizhou"]
[Result "0-1"]
[ECO "B21"]
[WhiteElo "1368"]
[BlackElo "1715"]
[Annotator "NA RC COMBH"]
[PlyCount "28"]
[EventDate "2022.06.05"]
[EventType "swiss"]
[EventRounds "9"]
[EventCountry "GER"]
[SourceTitle "playchess.com"]
[Source "ChessBase"]
[SourceQuality "1"]
[TimeControl "40/4500+30:900+30"]

1. e4 {[%emt 0:00:00]} c5 {[%emt 0:00:00]} 2. d4 {[%emt 0:00:00]} cxd4 {[%emt 0:00:00]} 3. c3 {[%emt 0:00:00]} Nf6 {[%emt 0:00:00]} 4. e5 {[%emt 0:00:00]} Nd5 {[%emt 0:00:00]} 5. c4 {[%emt 0:00:00]} Nb4 {[%emt 0:00:00]} 6. Nf3 {[%emt 0:00:00]} N4c6 {[%emt 0:00:00]} 7. Bf4 {[%emt 0:00:00]} Qb6 {[%emt 0:03:09]} 8. Bd3 {[%emt 0:00:00]} Qxb2 {[%emt 0:08:38]} 9. Nbd2 {[%emt 0:00:00]} Nb4 {[%emt 0:21:49]} 10. Be4 {[%emt 0:00:00]} N8c6 {[%emt 0:02:35]} 11. O-O {[%emt 0:00:00]} Nxa2 {[%emt 0:09:21]} 12. Bxc6 {[%emt 0:00:00]} dxc6 {[%emt 0:01:28]} 13. Nb3 {[%emt 0:00:00]} Nc3 {[%emt 0:01:00]} 14. Qxd4 {[%emt 0:00:00]} Ne2+ {[%emt 0:00:09]} 0-1

[Event "GER-ch Youth-U18w 2022"]
[Site "Willingen"]
[Date "2022.06.05"]
[Round "2.1"]
[White "Albayrak, Nese Pinar"]
[Black "Bardorz, Jana"]
[Result "1/2-1/2"]
[ECO "C77"]
[WhiteElo "1683"]
[BlackElo "1974"]
[Annotator "TA"]
[PlyCount "66"]
[EventDate "2022.06.05"]
[EventType "swiss"]
[EventRounds "9"]
[EventCountry "GER"]
[SourceTitle "playchess.com"]
[Source "ChessBase"]
[SourceQuality "1"]
[TimeControl "40/4500+30:900+30"]

{[%evp 13,66,4,5,0,10,14,27,26,57,23,42,8,59,44,37,32,30,21,26,27,34,33,41,35,47,54,72,62,79,26,22,12,60,60,55,54,59,59,54,24,39,39,28,21,16,25,23,23,118,117,142,142,146,141,151]} 1. e4 {[%emt 0:00:00]} e5 {[%emt 0:00:00]} 2. Nf3 {[%emt 0:00:00]} Nc6 {[%emt 0:00:00]} 3. Bb5 {[%emt 0:00:00]} a6 {[%emt 0:00:00]} 4. Ba4 {[%emt 0:00:00]} Nf6 {[%emt 0:00:00]} 5. Nc3 {[%emt 0:00:00]} b5 {[%emt 0:00:00]} 6. Bb3 {[%emt 0:00:00]} Be7 {[%emt 0:00:00]} 7. d3 {[%emt 0:00:00] 7.a4 gains popularity.} d6 {[%emt 0:00:00]} 8. a3 {[%emt 0:00:00] C77: Ruy Lopez: 3...a6 4 Ba4 Nf6, unusual lines.} Be6 {[%emt 0:00:00]} 9. Nd5 {[%emt 0:00:00]} h6 {[%emt 0:05:37] [#]} 10. h3 $146 {[%emt 0:00:00] White has an edge.} ({Predecessor:} 10. c3 O-O 11. O-O Nb8 12. Nxf6+ Bxf6 13. Bxe6 fxe6 14. d4 Nd7 15. dxe5 Bxe5 16. Nxe5 Nxe5 {1-0 (40) Poupalos,N (1940)-Koulouris,E (1710) Athens 2021}) 10... Nb8 {[%emt 0:03:55]} 11. Be3 {[%emt 0:04:15]} (11. Nxe7 Qxe7 12. O-O O-O $11) 11... Nbd7 {[%emt 0:01:45]} 12. O-O {[%emt 0:06:16]} c6 {[%emt 0:02:45]} (12... Nxd5 $11 13. exd5 (13. Bxd5 Bxd5 14. exd5 f5 $11) 13... Bf5) 13. Nxe7 {[%emt 0:18:57]} Qxe7 {[%emt 0:00:45]} 14. Bxe6 {[%emt 0:02:20]} Qxe6 {[%emt 0:03:25]} 15. Re1 {[%emt 0:05:34]} O-O {[%emt 0:01:54]} 16. Nh4 {[%emt 0:04:45]} d5 {[%emt 0:04:37]} 17. Qf3 {[%emt 0:03:06]} Kh7 {[%emt 0:08:24]} 18. Nf5 {[%emt 0:09:29]} Ne8 {[%emt 0:07:09]} 19. Qg4 {[%emt 0:10:02]} Rd8 {[%emt 0:16:09]} 20. Bd2 {[%emt 0:04:06] White is much more active. The black rooks are badly placed.} dxe4 {[%emt 0:04:34]} 21. Ba5 {[%emt 0:01:58]} (21. Rxe4 $2 Ndf6 22. Qe2 Qxf5 $19) (21. Qxe4 $16 {Black must now prevent Nxh6+.} Kh8 22. a4) 21... Ndf6 $11 {[%emt 0:03:02][%csl LRd3,LRg4]} 22. Qh4 {[%emt 0:04:00]} Rc8 {[%emt 0:02:02]} (22... Rd7 $1 $11 {deserves consideration.} 23. Bb4 (23. dxe4 Nd6 $11) 23... Qxf5 24. Bxf8 (24. dxe4 Nxe4 25. Bxf8 N8f6 $11) 24... exd3) 23. dxe4 $14 {[%emt 0:00:50]} Nd6 {[%emt 0:00:58]} 24. Nxd6 {[%emt 0:02:43]} Qxd6 {[%emt 0:00:06]} 25. Rad1 $36 {[%emt 0:00:18][%mdl 2048] White is more active.} Qe6 {[%emt 0:01:14]} 26. Rd3 {[%emt 0:03:22]} c5 {[%emt 0:00:15]} 27. Qg3 {[%emt 0:01:28]} Rc6 {[%emt 0:06:31]} 28. f3 {[%emt 0:02:04]} Rd6 {[%emt 0:00:56]} 29. Red1 {[%emt 0:00:50][%cal Be1d1,Bd1d3,Bd3d6][%mdl 32]} Rxd3 {[%emt 0:00:33]} 30. Rxd3 {[%emt 0:00:06]} Nh5 {[%emt 0:02:19] [#]} (30... Re8 $11 {keeps the balance.}) 31. Qg4 $1 $16 {[%emt 0:01:16]} Qxg4 {[%emt 0:02:30]} 32. hxg4 {[%emt 0:00:04]} ({But not} 32. fxg4 $6 Nf6 $11) 32... Nf4 {[%emt 0:01:50]} 33. Rd6 {[%emt 0:02:40]} Ra8 {[%emt 0:00:58] Weighted Error Value: White=0.07 (flawless) /Black=0.21 (precise)} 1/2-1/2

[Event "GER-ch Youth-U18w 2022"]
[Site "Willingen"]
[Date "2022.06.05"]
[Round "2.2"]
[White "Yue, Qizhou"]
[Black "Rudolph, Eva"]
[Result "1/2-1/2"]
[ECO "B41"]
[WhiteElo "1715"]
[BlackElo "1860"]
[Annotator "NA RC COMBH"]
[PlyCount "73"]
[EventDate "2022.06.05"]
[EventType "swiss"]
[EventRounds "9"]
[EventCountry "GER"]
[SourceTitle "playchess.com"]
[Source "ChessBase"]
[SourceQuality "1"]
[TimeControl "40/4500+30:900+30"]

1. e4 {[%emt 0:00:00]} c5 {[%emt 0:00:00]} 2. Nf3 {[%emt 0:00:00]} e6 {[%emt 0:00:00]} 3. d4 {[%emt 0:00:00]} cxd4 {[%emt 0:00:00]} 4. Nxd4 {[%emt 0:00:00]} a6 {[%emt 0:00:00]} 5. c4 {[%emt 0:00:00]} Nf6 {[%emt 0:00:00]} 6. Nc3 {[%emt 0:00:00]} Qc7 {[%emt 0:00:00]} 7. Be2 {[%emt 0:00:00]} Bb4 $14 {[%emt 0:00:00]} 8. Qd3 {[%emt 0:00:00]} Nc6 {[%emt 0:06:43]} 9. Nxc6 {[%emt 0:00:00]} dxc6 {[%emt 0:01:13]} 10. a3 {[%emt 0:01:27]} Be7 {[%emt 0:03:11]} 11. Be3 {[%emt 0:04:07]} e5 {[%emt 0:08:22]} 12. c5 {[%emt 0:15:39]} Be6 {[%emt 0:04:36]} 13. b4 {[%emt 0:03:31]} O-O {[%emt 0:02:44]} 14. O-O {[%emt 0:09:55]} Rad8 {[%emt 0:02:13]} 15. Qc2 {[%emt 0:02:11]} Nd7 {[%emt 0:04:13]} 16. Rad1 {[%emt 0:05:28]} Kh8 {[%emt 0:02:17]} 17. f4 {[%emt 0:05:04]} exf4 {[%emt 0:02:18]} 18. Bxf4 {[%emt 0:00:40]} Ne5 {[%emt 0:00:47]} 19. Kh1 {[%emt 0:06:15]} Bf6 {[%emt 0:02:45]} 20. Na4 {[%emt 0:03:49]} Rxd1 {[%emt 0:04:36]} 21. Rxd1 {[%emt 0:00:39]} Rd8 {[%emt 0:01:44]} 22. Nb6 {[%emt 0:01:31]} Qe7 {[%emt 0:03:00]} 23. Rd2 {[%emt 0:02:31]} Qe8 {[%emt 0:17:25]} 24. Qd1 {[%emt 0:02:18]} Rxd2 {[%emt 0:01:21]} 25. Qxd2 {[%emt 0:00:11]} Nd7 {[%emt 0:01:03]} 26. Nxd7 {[%emt 0:05:11]} Qxd7 {[%emt 0:11:13]} 27. Qxd7 {[%emt 0:03:39]} Bxd7 {[%emt 0:00:02]} 28. Bc4 {[%emt 0:01:11]} Be6 {[%emt 0:03:30]} 29. Bxe6 {[%emt 0:01:53]} fxe6 {[%emt 0:00:02]} 30. e5 {[%emt 0:04:32]} Bh4 {[%emt 0:01:05]} 31. g3 {[%emt 0:00:28]} Bd8 {[%emt 0:00:05]} 32. Bd2 {[%emt 0:01:22]} Kg8 {[%emt 0:01:02]} 33. Kg2 {[%emt 0:00:12]} Bc7 {[%emt 0:00:38]} 34. Bc3 {[%emt 0:00:15]} Bd8 {[%emt 0:01:57]} 35. Bd2 {[%emt 0:00:53]} Bc7 {[%emt 0:00:18]} 36. Bc3 {[%emt 0:00:08]} Bd8 {[%emt 0:01:34]} 37. Bd2 1/2-1/2